bitfinex/quotes_SOLUSD_20250806
["timestamp","ask_amount","ask_price","bid_price","bid_amount"]
[1754491845484,77.95498975,166.67,166.62,8.07498975]
[1754491845706,0.72,166.66,166.62,14.0765183]
[1754491847107,0.72,166.7,166.65,8.07498975]
[1754491847306,15.82621501,166.74,166.69,8.07498975]
[1754491847554,15.10621501,166.74,166.73,8.07498975]
[1754491847848,1e-08,166.74,166.73,29.17892618]
[1754491848001,1e-08,166.74,166.72,15.10621557]
[1754491848201,1e-08,166.74,166.71,57.95318219]
[1754491848618,1e-08,166.74,166.73,8.07498975]
[1754491848826,1e-08,166.74,166.72,8.07498975]
[1754491849038,1e-08,166.74,166.73,8.07498975]
[1754491849824,1e-08,166.74,166.73,14.07271061]
[1754491851036,1e-08,166.74,166.73,5.99772086]
[1754491851236,1e-08,166.74,166.72,29.17919078]
[1754491851436,1e-08,166.74,166.71,57.95333871]
[1754491852130,1e-08,166.74,166.72,8.07498975]
[1754491852821,1e-08,166.74,166.71,49.87834896]
[1754491852822,1e-08,166.74,166.71,43.88]
[1754491853012,0.72,166.73,166.71,43.88]
[1754491853418,1e-08,166.74,166.7,14.07354881]
[1754491853735,1e-08,166.74,166.72,8.07498975]
[1754491853939,1e-08,166.74,166.73,8.07498975]
[1754491854507,1e-08,166.74,166.7,14.07354881]
[1754491854712,0.72000001,166.74,166.7,14.07354881]
[1754491855331,0.72,166.73,166.69,15.10621557]
[1754491855534,0.72,166.73,166.7,8.07498975]
[1754491855738,1e-08,166.74,166.7,14.07361591]
[1754491855931,1e-08,166.74,166.71,8.07498975]
[1754491856131,0.72,166.73,166.7,8.07498975]
[1754491856516,8.79498975,166.72,166.68,8.07498975]
[1754491857031,0.72,166.72,166.68,8.07498975]
[1754491857612,0.72,166.72,166.68,14.07442233]
[1754491857808,0.72,166.72,166.68,8.07498975]
[1754491858042,8.07498975,166.72,166.67,58.96621557]
[1754491858223,8.07498975,166.72,166.67,73.04099589]
[1754491858425,8.79498975,166.72,166.68,8.07498975]
[1754491858823,8.79498975,166.71,166.67,67.04120532]
[1754491859045,0.72,166.7,166.67,67.04120532]
[1754491859553,0.72,166.72,166.68,8.07498975]
[1754491859921,0.72,166.71,166.67,58.96621557]
[1754491860126,0.72,166.7,166.67,67.04120532]
[1754491860442,0.72,166.7,166.67,43.86]
[1754491860746,8.07498975,166.71,166.67,43.86]
[1754491861053,8.79498975,166.69,166.64,73.04211747]
[1754491861633,8.79498975,166.69,166.64,67.04120532]
[1754491861931,8.79498975,166.69,166.64,67.71120532]
[1754491862962,8.79498975,166.69,166.64,73.71215376]
[1754491863145,8.79498975,166.69,166.64,29.85215376]
[1754491863343,8.78498975,166.68,166.63,8.07498975]
[1754491863670,8.78498975,166.68,166.62,44.6]
[1754491863671,8.07498975,166.67,166.62,57.99662817]
[1754491863962,0.71,166.66,166.62,51.99498975]
[1754491864174,8.07498975,166.64,166.62,43.92]
[1754491864326,8.78498975,166.64,166.62,0.06]
[1754491864536,8.07498975,166.65,166.62,0.06]
[1754491864746,34.07498975,166.67,166.62,14.81665989]
[1754491865039,8.07498975,166.65,166.62,0.06]
[1754491865445,8.78498975,166.64,166.62,0.06]
[1754491866372,8.07498975,166.65,166.62,0.06]
[1754491866744,8.07498975,166.66,166.62,0.06]
[1754491867050,8.07498975,166.65,166.62,0.06]
[1754491867254,8.78498975,166.65,166.62,0.06]
[1754491867456,8.07498975,166.65,166.62,0.06]
[1754491867653,34.78498975,166.69,166.64,8.07498975]
[1754491867960,16.66470155,166.76,166.65,8.75498975]
[1754491867961,8.07498975,166.7,166.65,8.75498975]
[1754491868131,8.07498975,166.67,166.62,0.74]
[1754491868332,8.78498975,166.66,166.62,0.06]
[1754491868768,8.78498975,166.65,166.62,0.06]
[1754491868971,8.07498975,166.63,166.62,0.06]
[1754491869363,8.78498975,166.63,166.62,0.06]
[1754491869956,26.0,166.61,166.6,0.06]
[1754491870158,26.0,166.61,166.58,0.06]
[1754491870159,26.0,166.59,166.58,0.06]
[1754491870360,34.07498975,166.59,166.5,43.84]
[1754491870576,8.07498975,166.55,166.5,51.91498975]
[1754491870892,8.07498975,166.56,166.51,0.68]
[1754491871072,8.78498975,166.56,166.51,15.10621557]
[1754491871281,8.07498975,166.57,166.52,8.75498975]
[1754491871462,8.07498975,166.57,166.53,0.68]
[1754491872864,8.07498975,166.57,166.53,6.68483366]
[1754491873274,8.07498975,166.57,166.53,6.00483366]
[1754491873778,8.07498975,166.54,166.5,21.11215053]
[1754491874086,8.07498975,166.55,166.51,0.68]
[1754491874292,8.07498975,166.53,166.49,6.00631017]
[1754491874783,8.07498975,166.54,166.5,0.68]
[1754491874961,26.0,166.58,166.47,43.92]
[1754491874962,8.07498975,166.52,166.47,43.92]
[1754491875167,0.71,166.51,166.47,49.92704369]
[1754491875378,8.07498975,166.52,166.48,0.68]
[1754491875569,34.07498975,166.55,166.5,8.07498975]
[1754491875763,8.07498975,166.54,166.49,23.18120532]
[1754491875967,8.78498975,166.53,166.49,15.10621557]
[1754491876154,8.78498975,166.53,166.48,8.07498975]
[1754491876364,32.00357562,166.57,166.47,43.92]
[1754491876365,8.07498975,166.51,166.47,43.92]
[1754491876571,8.78498975,166.51,166.47,43.92]
[1754491876778,26.0,166.54,166.47,43.92]
[1754491876779,8.07498975,166.49,166.47,43.92]
[1754491876956,0.71,166.49,166.47,0.06]
[1754491877171,8.78498975,166.49,166.47,0.06]
[1754491877357,8.07498975,166.5,166.47,0.06]
[1754491877686,8.07498975,166.5,166.47,6.06707815]
[1754491877859,8.07498975,166.51,166.47,6.06707306]
[1754491878058,8.78498975,166.51,166.47,0.06]
[1754491878270,8.07498975,166.5,166.47,0.06]
[1754491878487,8.07498975,166.51,166.47,0.06]
[1754491878690,8.78498975,166.5,166.47,0.06]
[1754491878990,8.07498975,166.48,166.47,0.06]
[1754491879496,8.78498975,166.49,166.47,0.06]
[1754491879855,8.78498975,166.48,166.47,0.06]
[1754491881855,8.78498975,166.48,166.43,0.2]
[1754491881856,26.0,166.45,166.43,0.2]
[1754491882084,8.07498975,166.44,166.43,0.2]
[1754491882412,8.78498975,166.44,166.43,0.2]
[1754491882568,34.07498975,166.45,166.43,0.2]
[1754491882772,8.07498975,166.46,166.43,0.2]
[1754491883699,2.407825,166.49,166.44,8.07498975]
[1754491883903,8.07498975,166.49,166.44,8.07498975]
[1754491884076,8.07498975,166.49,166.44,8.75498975]
[1754491884409,8.78498975,166.49,166.44,8.75498975]
[1754491884564,8.07498975,166.48,166.43,14.28350654]
[1754491884768,8.07498975,166.44,166.43,0.2]
[1754491885195,8.78498975,166.44,166.43,0.2]
[1754491886165,8.07498975,166.46,166.43,0.2]
[1754491886597,26.71,166.47,166.43,0.2]
[1754491886598,8.78498975,166.45,166.43,0.2]
[1754491887106,34.07498975,166.47,166.43,6.20852588]
[1754491887278,26.0,166.47,166.44,8.75498975]
[1754491887602,8.07498975,166.49,166.44,8.75498975]
[1754491887971,51.95498975,166.5,166.45,8.75498975]
[1754491888312,18.055431,166.52,166.48,8.07498975]
[1754491888470,18.055431,166.52,166.49,8.75498975]
[1754491888791,52.66498975,166.54,166.49,8.75498975]
[1754491889003,43.88,166.54,166.5,14.08099575]
[1754491889212,43.88,166.54,166.51,8.07498975]
[1754491889365,26.71,166.56,166.52,8.07498975]
[1754491889366,8.07498975,166.56,166.52,8.07498975]
[1754491889675,26.0,166.55,166.52,8.07498975]
[1754491890074,34.07498975,166.55,166.5,14.08099575]
[1754491890388,8.78498975,166.54,166.49,23.18120532]
[1754491890567,8.78498975,166.57,166.52,8.07498975]
[1754491890769,43.91,166.58,166.54,8.07498975]
[1754491890973,43.91,166.58,166.54,14.07925924]
[1754491891201,0.71,166.57,166.53,14.079789]
[1754491891617,43.91,166.58,166.54,8.07498975]
[1754491891913,43.91,166.58,166.54,8.75498975]
[1754491892124,0.03,166.58,166.55,15.78621557]
[1754491892276,0.03,166.58,166.57,23.18120532]
[1754491892473,0.03,166.58,166.57,23.46552846]
[1754491892682,0.03,166.58,166.57,24.14552846]
[1754491893179,0.03,166.6,166.58,15.39053871]
[1754491893402,0.03,166.6,166.59,8.07498975]
[1754491893599,0.03,166.6,166.59,8.76498975]
[1754491894619,0.03,166.6,166.59,23.18120532]
[1754491894990,0.03,166.6,166.59,29.18396659]
[1754491895593,0.03,166.6,166.59,30.15828973]
[1754491896480,0.03,166.6,166.59,29.87396659]
[1754491896686,0.03,166.6,166.59,29.18396659]
[1754491898592,0.03,166.6,166.59,29.87396659]
[1754491899001,0.03,166.6,166.59,29.18396659]
[1754491900998,0.03,166.6,166.59,23.18120532]
[1754491901197,0.03,166.6,166.59,21.10897684]
[1754491901426,0.03,166.6,166.59,23.18120532]
[1754491901623,0.03,166.6,166.59,29.18396659]
[1754491901928,0.03,166.6,166.59,29.87396659]
[1754491902298,0.03,166.6,166.59,30.15828973]
[1754491902530,0.03,166.6,166.59,92.15828973]
[1754491903235,0.03,166.6,166.59,91.18396659]
[1754491903414,0.03,166.6,166.59,135.02396659]
[1754491904525,0.03,166.6,166.59,135.99828973]
[1754491904703,0.03,166.6,166.59,126.94897684]
[1754491904904,0.03,166.6,166.59,135.02396659]
[1754491906325,0.03,166.6,166.59,135.99828973]
[1754491911333,0.03,166.6,166.59,135.30828973]
[1754491912013,0.03,166.6,166.59,135.02396659]
[1754491912430,0.03,166.6,166.59,126.94897684]
[1754491912613,0.03,166.6,166.59,135.02396659]
[1754491914311,0.03,166.6,166.59,135.99828973]
[1754491915436,0.03,166.6,166.59,161.99828973]
[1754491915634,0.03,166.6,166.59,161.00396659]
[1754491917414,0.72,166.6,166.59,161.00396659]
[1754491917605,0.72,166.6,166.58,6.00298331]
[1754491917807,0.72,166.6,166.58,8.07498975]
[1754491918020,0.03,166.6,166.59,43.82]
[1754491918325,0.03,166.6,166.56,8.07498975]
[1754491918531,0.69,166.59,166.57,43.82]
[1754491918733,0.69,166.59,166.56,43.82]
[1754491918910,8.07498975,166.58,166.53,8.07498975]
[1754491919110,8.76498975,166.57,166.52,8.07498975]
[1754491919438,0.69,166.56,166.53,43.82]
[1754491919612,0.69,166.55,166.53,43.82]
[1754491919808,0.69,166.55,166.53,57.89987733]
[1754491920012,8.10498975,166.6,166.54,23.18120532]
[1754491920218,0.69,166.59,166.56,23.18120532]
[1754491920435,0.72,166.6,166.58,8.07498975]
[1754491921537,0.72,166.6,166.57,51.89498975]
[1754491921740,0.69,166.59,166.54,15.10621557]
[1754491922031,8.10498975,166.6,166.55,51.89498975]
[1754491922032,0.69,166.58,166.55,51.89498975]
[1754491922241,0.69,166.58,166.56,8.07498975]
[1754491923214,0.03,166.6,166.57,8.07498975]
[1754491923408,0.72,166.6,166.57,8.07498975]
[1754491923610,0.72,166.6,166.57,14.07825072]
[1754491924017,0.69,166.59,166.57,14.07825072]
[1754491924220,0.69,166.58,166.56,14.13871328]
[1754491924439,0.03,166.6,166.57,23.18120532]
[1754491924737,0.03,166.6,166.59,8.07498975]
[1754491925535,0.72,166.6,166.58,43.82]
[1754491926236,0.69,166.59,166.58,43.88]
[1754491926426,0.69,166.59,166.58,0.06]
[1754491927944,0.03,166.6,166.58,8.13498975]
[1754491928419,0.03,166.6,166.59,8.07498975]
[1754491928834,0.72,166.6,166.58,51.95498975]
[1754491929141,0.03,166.6,166.58,51.95498975]
[1754491929439,0.03,166.6,166.59,8.07498975]
[1754491931441,0.03,166.6,166.59,23.84120532]
[1754491931850,0.03,166.62,166.6,15.10621557]
[1754491932021,0.03,166.62,166.61,43.82]
[1754491932221,0.03,166.62,166.61,67.00120532]
[1754491932455,0.03,166.62,166.61,67.66120532]
[1754491932948,0.03,166.62,166.61,67.00120532]
[1754491933734,0.03,166.62,166.61,51.89498975]
[1754491934337,0.03,166.62,166.61,57.89703044]
[1754491934926,0.03,166.62,166.61,51.89498975]
[1754491935125,0.03,166.62,166.61,57.89703044]
[1754491936839,0.72,166.62,166.61,43.82]
[1754491937032,0.72,166.62,166.6,51.87498975]
[1754491937536,0.03,166.62,166.61,8.07498975]
[1754491937737,0.03,166.62,166.61,14.07703044]
[1754491937958,0.03,166.62,166.61,14.73703044]
[1754491938163,0.03,166.62,166.61,29.84324601]
[1754491938654,0.03,166.62,166.61,26.15635096]
[1754491939642,0.03,166.62,166.61,26.81635096]
[1754491939974,0.03,166.62,166.61,26.15635096]
[1754491940757,0.03,166.62,166.61,29.18578951]
[1754491943362,0.03,166.62,166.61,8.07753325]
[1754491943557,0.72,166.62,166.6,119.87979922]
[1754491943861,0.03,166.62,166.61,23.84374882]
[1754491944449,0.03,166.62,166.61,29.84578951]
[1754491945035,0.03,166.62,166.61,91.84578951]
[1754491946678,0.03,166.62,166.61,91.18578951]
[1754491947369,0.03,166.62,166.61,83.10825626]
[1754491949974,0.03,166.62,166.61,91.84578951]
[1754491950472,0.03,166.62,166.61,91.18578951]
[1754491953073,0.03,166.62,166.61,83.10825626]
[1754491953277,0.03,166.62,166.61,91.18578951]
[1754491953879,0.03,166.62,166.61,91.90578951]
[1754491957851,0.03,166.62,166.61,92.19011265]
[1754491958787,0.03,166.62,166.61,91.47011265]
[1754491958991,0.03,166.62,166.61,92.19011265]
[1754491960900,0.03,166.62,166.61,91.47011265]
[1754491961261,0.03,166.62,166.61,91.18578951]
[1754491961661,0.03,166.62,166.61,91.90578951]
[1754491962372,0.03,166.64,166.63,41.39053871]
[1754491962573,0.03,166.64,166.63,93.20807196]
[1754491962774,0.03,166.64,166.63,90.17569648]
[1754491962988,0.03,166.64,166.63,90.89569648]
[1754491963188,4.04144378,166.71,166.65,0.28432314]
[1754491963375,4.71144378,166.71,166.7,5.04515777]
[1754491963697,0.67,166.71,166.7,43.74]
[1754491963892,5.05426689,166.74,166.7,48.78515777]
[1754491963893,4.04144378,166.72,166.7,48.78515777]
[1754491964071,4.03740989,166.73,166.71,20.15137334]
[1754491964269,4.0374099,166.74,166.73,15.10621557]
[1754491964579,1e-08,166.74,166.73,20.15137334]
[1754491965116,0.67000001,166.74,166.73,5.04515777]
[1754491965599,0.67000001,166.74,166.7,43.74]
[1754491965600,5.71515778,166.74,166.7,43.74]
[1754491965802,0.67,166.73,166.71,43.74]
[1754491965972,0.67,166.73,166.7,43.74]
[1754491966308,0.67,166.73,166.7,48.78515777]
[1754491966782,0.67,166.72,166.7,48.78515777]
[1754491966985,1e-08,166.74,166.7,48.78515777]
[1754491967282,0.67,166.71,166.7,48.78515777]
[1754491968791,0.67000001,166.74,166.71,15.10621557]
[1754491968988,1e-08,166.74,166.73,15.10621557]
[1754491969173,1e-08,166.74,166.73,20.15137334]
[1754491969373,0.1,166.75,166.73,20.87137334]
[1754491969570,0.1,166.79,166.77,26.0]
[1754491969799,0.1,166.83,166.82,15.39053871]
[1754491970020,0.1,166.83,166.82,70.15018155]
[1754491970165,0.1,166.83,166.82,64.15569648]
[1754491970367,0.77,166.83,166.82,5.32948091]
[1754491970590,0.77,166.83,166.82,5.04515777]
[1754491970904,0.77,166.83,166.82,58.82621557]
[1754491971192,0.77,166.83,166.82,66.88483104]
[1754491971193,0.1,166.83,166.82,66.88483104]
[1754491972080,0.1,166.83,166.82,73.16363925]
[1754491972289,0.1,166.83,166.82,73.88363925]
[1754491972489,0.1,166.83,166.82,74.48308775]
[1754491972678,0.1,166.83,166.82,73.88363925]
[1754491973196,0.1,166.83,166.82,74.48308775]
[1754491973367,0.1,166.83,166.82,99.16363925]
[1754491973568,0.1,166.83,166.82,93.14915418]
[1754491973782,0.77,166.83,166.82,58.80621557]
[1754491974603,0.1,166.83,166.82,66.86483104]
[1754491974915,0.77,166.83,166.82,58.80621557]
[1754491975926,0.77,166.83,166.82,43.7]
[1754491976908,0.77,166.83,166.82,43.68]
[1754491977890,0.1,166.83,166.82,66.84483104]
[1754491978096,0.1,166.83,166.82,73.12363925]
[1754491978401,0.1,166.83,166.82,73.84363925]
[1754491978719,0.03,166.89,166.86,15.10621557]
[1754491978890,0.03,166.89,166.88,23.16483104]
[1754491979218,0.03,166.89,166.88,66.84483104]
[1754491980403,0.03,166.89,166.88,58.78621557]
[1754491980600,0.03,166.89,166.88,66.84483104]
[1754491980919,0.03,166.89,166.88,73.84148399]
[1754491982230,0.03,166.89,166.88,55.44148399]
[1754491982435,0.03,166.89,166.88,99.10148399]
[1754491983527,0.03,166.89,166.87,8.05861547]
[1754491983716,0.72,166.89,166.88,58.76621557]
[1754491984436,0.72,166.89,166.88,43.66]
[1754491984621,8.77861547,166.89,166.83,8.05861547]
[1754491984823,8.74861547,166.88,166.84,43.64]
[1754491985142,0.69,166.87,166.84,43.64]
[1754491985336,0.69,166.86,166.84,43.64]
[1754491985641,8.05861547,166.88,166.84,43.64]
[1754491985839,0.69,166.85,166.84,58.74621557]
[1754491986332,0.69,166.85,166.84,43.64]
[1754491986637,8.74861547,166.85,166.79,15.10621557]
[1754491986935,8.05861547,166.83,166.8,43.64]
[1754491987108,0.69,166.82,166.8,43.64]
[1754491987429,0.69,166.81,166.8,58.74621557]
[1754491987729,8.05861547,166.83,166.8,58.74621557]
[1754491987931,0.69,166.87,166.83,15.10621557]
[1754491988237,34.77861547,166.89,166.84,51.69861547]
[1754491988422,8.08861547,166.89,166.84,57.69232115]
[1754491988626,0.03,166.89,166.85,8.05861547]
[1754491988815,0.69,166.88,166.86,43.64]
[1754491989738,0.69,166.87,166.86,58.74621557]
[1754491989943,0.69,166.87,166.86,43.64]
[1754491990122,0.69,166.87,166.85,58.74621557]
[1754491990641,8.08861547,166.89,166.81,8.11861547]
[1754491990642,8.74861547,166.86,166.81,8.11861547]
[1754491990842,8.74861547,166.85,166.82,58.74621557]
[1754491991140,26.03,166.89,166.82,43.64]
[1754491991141,8.74861547,166.84,166.82,43.64]
[1754491991321,0.69,166.83,166.82,43.64]
[1754491992545,0.69,166.85,166.83,0.06]
[1754491992846,8.05861547,166.87,166.83,0.06]
[1754491993004,0.69,166.88,166.84,23.16483104]
[1754491993205,0.69,166.88,166.85,8.05861547]
[1754491993711,0.69,166.88,166.84,66.80483104]
[1754491994117,0.69,166.87,166.84,43.64]
[1754491995037,8.05861547,166.87,166.84,43.64]
[1754491995215,8.08861547,166.89,166.85,15.10621557]
[1754491995419,0.72,166.89,166.85,23.16483104]
[1754491995620,8.74861547,166.88,166.85,15.10621557]
[1754491995837,8.74861547,166.87,166.84,43.64]
[1754491996446,8.05861547,166.88,166.84,43.64]
[1754491996637,0.69,166.87,166.84,43.64]
[1754491997745,8.05861547,166.88,166.84,49.63370671]
[1754491997950,8.74861547,166.88,166.84,49.63370671]
[1754491998447,8.74861547,166.88,166.84,43.64]
[1754491999123,0.03,166.89,166.84,43.64]
[1754491999124,8.74861547,166.87,166.84,43.64]
[1754491999323,8.05861547,166.87,166.84,43.64]
[1754491999629,0.69,166.86,166.84,43.64]
[1754491999830,0.69,166.88,166.84,43.64]
[1754492000056,8.08861547,166.89,166.84,58.41226244]
[1754492000253,0.03,166.89,166.85,15.10621557]
[1754492000549,8.08861547,166.89,166.85,21.09942255]
[1754492000848,0.03,166.89,166.86,48.65431179]
[1754492001028,0.03,166.89,166.88,5.03431179]
[1754492001353,0.03,166.89,166.88,20.14052736]
[1754492001724,0.03,166.89,166.88,63.76052736]
[1754492002223,0.03,166.89,166.88,69.75285717]
[1754492002424,0.03,166.89,166.88,70.47285717]
[1754492003421,0.03,166.89,166.88,64.71854538]
[1754492003624,0.03,166.89,166.88,69.75285717]
[1754492004533,0.03,166.89,166.88,64.71854538]
[1754492004738,0.03,166.89,166.88,58.72621557]
[1754492005145,5.75431179,166.89,166.86,43.62]
[1754492005327,5.03431179,166.87,166.85,43.62]
[1754492005530,5.72431179,166.87,166.85,43.62]
[1754492006045,5.03431179,166.88,166.85,43.62]
[1754492006937,5.75431179,166.89,166.85,49.61334459]
[1754492007336,0.03,166.89,166.86,20.14052736]
[1754492007553,0.03,166.89,166.86,20.86052736]
[1754492007738,0.03,166.89,166.87,5.03431179]
[1754492008257,0.03,166.89,166.87,49.35431179]
[1754492008554,0.03,166.89,166.87,48.63431179]
[1754492008936,5.72431179,166.88,166.85,58.70621557]
[1754492009137,0.69,166.87,166.85,43.6]
[1754492009655,5.03431179,166.88,166.85,43.6]
[1754492010053,0.69,166.87,166.85,43.6]
[1754492010832,31.06431179,166.89,166.85,49.59335184]
[1754492011051,4.01249061,166.88,166.85,55.34766363]
[1754492011241,0.03,166.89,166.85,54.62766363]
[1754492011551,0.72,166.89,166.85,54.62766363]
[1754492011947,0.03,166.89,166.85,55.34766363]
[1754492012254,4.04858366,166.89,166.86,15.10621557]
[1754492012458,4.04858366,166.89,166.86,20.86052736]
[1754492012759,4.04858366,166.89,166.87,51.6537313]
[1754492012939,4.04858366,166.89,166.87,57.64633209]
[1754492013254,4.01858366,166.88,166.87,58.70621557]
[1754492013452,4.71858366,166.88,166.87,58.70621557]
[1754492013832,4.01858366,166.88,166.87,58.70621557]
[1754492014152,4.01858366,166.88,166.87,72.75263578]
[1754492014358,4.01858366,166.88,166.87,73.41263578]
[1754492014836,0.03,166.89,166.88,15.10621557]
[1754492015060,4.06241413,166.89,166.88,29.15227668]
[1754492016258,4.06241413,166.89,166.88,15.10621557]
[1754492016649,4.06241413,166.89,166.88,29.15227668]
[1754492016846,4.06241413,166.89,166.88,29.81227668]
[1754492017050,0.03,166.89,166.88,29.81227668]
[1754492017245,0.03,166.89,166.88,30.09659982]
[1754492018761,0.03,166.89,166.85,15.10621557]
[1754492018762,8.7837313,166.89,166.85,15.10621557]
[1754492018953,8.7837313,166.89,166.85,66.73994687]
[1754492019133,8.7537313,166.88,166.85,43.58]
[1754492019337,0.7,166.87,166.85,43.58]
[1754492019570,8.7537313,166.87,166.85,43.58]
[1754492019868,26.0,166.84,166.83,0.06]
[1754492020077,26.0,166.83,166.81,0.06]
[1754492020280,12.0862623,166.82,166.81,0.06]
[1754492020433,12.7862623,166.82,166.81,0.06]
[1754492020852,0.7,166.85,166.81,0.06]
[1754492021063,8.7537313,166.85,166.81,0.06]
[1754492021380,8.0537313,166.83,166.81,0.06]
[1754492021542,8.0537313,166.82,166.81,0.06]
[1754492021742,8.7537313,166.82,166.81,0.06]
[1754492023640,8.0537313,166.82,166.81,0.06]
[1754492023872,8.7537313,166.82,166.81,0.06]
[1754492024962,26.7755373,166.82,166.81,0.06]
[1754492025161,30.80630013,166.82,166.81,0.06]
[1754492026257,12.78449413,166.82,166.81,0.06]
[1754492026460,12.08449413,166.82,166.81,0.06]
[1754492026856,8.0537313,166.82,166.81,0.06]
[1754492027369,8.7537313,166.82,166.81,0.06]
[1754492028063,8.0537313,166.82,166.81,0.06]
[1754492028447,8.7537313,166.82,166.81,0.06]
[1754492028651,8.0537313,166.82,166.81,0.06]
[1754492029353,12.78131524,166.82,166.81,0.06]
[1754492029553,27.88753024,166.82,166.81,0.06]
[1754492029757,71.46753024,166.82,166.81,0.06]
[1754492030660,38.78131524,166.82,166.81,0.06]
[1754492030958,38.08131524,166.82,166.81,0.06]
[1754492031151,38.78131524,166.82,166.81,0.06]
[1754492031546,34.0537313,166.82,166.81,0.06]
[1754492032273,8.0537313,166.82,166.81,0.06]
[1754492032575,8.0537313,166.83,166.81,0.06]
[1754492033373,8.0537313,166.82,166.81,0.06]
[1754492034873,9.413731,166.84,166.81,0.06]
[1754492035088,8.0537313,166.83,166.81,0.06]
[1754492035249,69.58,166.85,166.81,0.06]
[1754492035250,77.6337313,166.85,166.81,0.72]
[1754492035649,8.0537313,166.84,166.81,0.72]
[1754492036551,77.6337313,166.85,166.81,0.72]
[1754492036857,8.0537313,166.84,166.81,0.06]
[1754492037561,78.3337313,166.85,166.81,6.0548299]
[1754492037884,8.0537313,166.87,166.82,8.7137313]
[1754492038063,8.0537313,166.86,166.82,0.66]
[1754492038392,12.07618876,166.87,166.83,0.66]
[1754492038570,18.015313,166.88,166.84,23.81994687]
[1754492038877,26.0690443,166.88,166.81,0.06]
[1754492039072,0.7,166.87,166.83,15.10621557]
[1754492039374,0.7,166.87,166.83,23.15994687]
[1754492039675,0.7,166.87,166.83,23.81994687]
[1754492039889,0.7,166.87,166.83,15.76621557]
[1754492040114,8.0537313,166.88,166.84,5.99376648]
[1754492040454,26.7,166.87,166.81,21.16096661]
[1754492040677,8.0537313,166.86,166.81,29.87469791]
[1754492040877,8.0537313,166.86,166.82,0.66]
[1754492041397,8.7537313,166.86,166.82,0.66]
[1754492041603,18.014231,166.88,166.86,15.10621557]
[1754492041813,18.014231,166.88,166.87,0.66]
[1754492041981,18.014231,166.88,166.87,23.81994687]
[1754492042175,18.014231,166.88,166.87,29.81263578]
[1754492042914,18.014231,166.88,166.86,5.99300915]
[1754492043118,18.734231,166.88,166.85,15.10621557]
[1754492043316,18.014231,166.88,166.85,15.10621557]
[1754492043611,18.014231,166.88,166.86,0.66]
[1754492043816,0.03,166.89,166.86,0.66]
[1754492043986,0.03,166.89,166.87,15.10621557]
[1754492044811,8.7737313,166.88,166.84,49.55365257]
[1754492045021,0.72,166.87,166.85,15.10621557]
[1754492045627,8.7737313,166.87,166.85,15.10621557]
[1754492045924,8.7737313,166.86,166.84,43.56]
[1754492046111,8.0537313,166.87,166.84,15.10621557]
[1754492046305,8.7737313,166.88,166.84,15.10621557]
[1754492046682,8.7737313,166.87,166.83,62.0]
[1754492046881,8.7737313,166.86,166.83,62.0]
[1754492047724,8.0537313,166.85,166.81,43.62]
[1754492048014,8.0537313,166.83,166.81,43.62]
[1754492048182,8.7737313,166.82,166.81,0.06]
[1754492051234,8.0537313,166.82,166.81,0.06]
[1754492051751,8.773731,166.83,166.81,0.06]
[1754492051752,8.0537313,166.83,166.81,0.06]
[1754492052057,6.656205,166.85,166.81,8.7737313]
[1754492052209,4.02348745,166.85,166.81,8.1137313]
[1754492052409,8.0537313,166.86,166.82,0.66]
[1754492052660,8.0537313,166.87,166.83,5.99412575]
[1754492052849,8.0537313,166.87,166.83,6.65412575]
[1754492053146,8.773731,166.87,166.84,0.66]
[1754492053440,8.773731,166.87,166.84,8.7137313]
[1754492053441,4.02348745,166.87,166.84,8.7137313]
[1754492053614,4.05348745,166.88,166.84,8.7137313]